{"text_format":"1","workbook":"xlsx","n_sheets":5,"sheets":["Instructions","Data Entry Sheet","Sort Sheet","Division Sort Sheet","Sheet3"],"not_rendered":{"charts":0,"images":0,"macros":1,"external_links":0,"defined_names":0,"comments":0,"pivot_tables":0},"unopened":[],"bounds":{"document_bytes":16777216,"sheet_cells":100000,"rows_first":2000,"rows_last":500,"rows_between":2000,"halvings":0,"cell_chars":16384,"cell_head_chars":4096},"cells_cut":0,"cells_raw":0,"read":"whole","date_system":"1900"}

{"sheet":"Instructions","index":0,"n_rows":19,"n_cols":1,"rows_kept":19,"cut":false,"hidden":false,"merged":[]}
["1) Double check data on scoresheet"]
["2)  Fill out all white cells - do not leave any blank as data is required for assessing achievements earned and in case a tie breaker is needed"]
["If no UDT # ensure full names are used for handler and proper spelling for dog"]
["To determine placements:"]
["3) Go to sort sheet, place cursor in yellow box, press button to sort"]
["4) Review missed catches and missed obstacle data for tie breakers"]
["If need be a clear data button is available in the total column to clear the sort sheet of previous data"]
["The sort on this sheet does take into account the tie breaker criteria."]
[]
[]
["Do not rearrange any columns or delete any example rows."]
["Save this form as the Event name, date, game (Example:  PlantCity2-8-15Frizgility)"]
["Email to results@updogchallenge.com within 10 days of event"]
[]
["Tie Breaking: In the event of a tie, placements will be determined in the following manner: The team with the fewest"]
["missed catches breaks the tie, then the team with the fewest missed obstacles. If both of these are the same, the two "]
["teams will be timed as they run through the “course” one time each (1 direction). Time is stopped as the dog makes the "]
["catch in the catch zone. The team with the most points wins. If both teams achieve the same amount of points, the "]
["team with the fastest time wins. A disc flip will determine which team runs through the course first."]

{"sheet":"Data Entry Sheet","index":1,"n_rows":200,"n_cols":17,"rows_kept":200,"cut":false,"hidden":false,"merged":[]}
["Frizgility Data Entry"]
["Level ","Handler","Dog","UDT #\n(this is the UpDog Team # not the competitor #)","Obstacle 1\nTotal # of obstacles completed successfully","Obstacle 2\nTotal # of obstacles completed successfully","Obstacle 3\nTotal # of obstacles completed successfully","Total of\nMissed Obstacles\n","Total # of\n10 yard catches completed successfully (used in TB 2)","Total # of\n3 yard catches completed successfully","Total of\nMissed Catches\n(for use in tie-breaker 1)","Did the handler, dog and 1 disc end in the Sweet Spot, Y or N?","Total","Speedy Feet\n4 Clean Runs with all catches made on 1st attempt*?","High Five   5 Clean Runs with all catches made on 1st attempt*?","Division"]
[1,"Example","Uppy D",null,5,5,5,0,5,0,0,"Y",{"$f":"SUM(E3*5)+(F3*5)+(G3*5)+(I3*10)+(J3*3)+IF(L3=\"Y\",10,IF(L3=\"N\",0))","v":135},"N","Y","Midi","*Only the highest of the 2 will be earned"]
[1,null,null,null,null,null,null,null,null,null,null,null,{"$f":"SUM(E4*5)+(F4*5)+(G4*5)+(I4*10)+(J4*3)+IF(L4=\"Y\",10,IF(L4=\"N\",0))","v":0}]
[1,null,null,null,null,null,null,null,null,null,null,null,0]
[1,null,null,null,null,null,null,null,null,null,null,null,0]
[1,null,null,null,null,null,null,null,null,null,null,null,0]
[1,null,null,null,null,null,null,null,null,null,null,null,0]
[1,null,null,null,null,null,null,null,null,null,null,null,0]
[1,null,null,null,null,null,null,null,null,null,null,null,0]
[1,null,null,null,null,null,null,null,null,null,null,null,0]
[1,"Lindsay Thompson","Moxie","T27199235",6,6,6,0,3,1,2,"N",123,"Y","N"]
[1,"Tamnmy Bonas","Tac","T2832181",6,6,6,0,1,0,5,"N",100,"N","N"]
[1,"Frank Monbtgomery","Jagger","T2009152",6,6,6,0,2,0,4,"N",110,"N","N"]
[1,"Sam Marion","GIR","T20779220",5,4,4,0,4,0,0,"N",105,"Y","N"]
[1,"Zoey Proctor","Figment","T29478231",5,5,2,3,3,0,2,"N",90,"N","N"]
[1,"Eden Proctor","Rumor","T30760240",2,3,3,1,1,0,1,"N",50,"N","N"]
[1,"Sam Marion","Josie","t10565197",4,4,4,0,3,0,1,"Y",100,"N","N"]
[1,"Finn Proctor","Rumor","T29480237",5,5,5,3,1,1,3,"Y",98,"N","N"]
[1,"Frank Monbtgomery","Bil Boy Blu","T2009152",3,3,2,1,0,1,2,"Y",53,"N","N"]
[1,"Rachel Hoar","Nacho","T16237214",3,2,2,0,0,0,2,"N",35,"N","N"]
[1,"Tammy Bonas","Bo","T26447235",2,2,2,2,0,0,2,"Y",40,"N","N"]
[1,"Tracy Love","Rhythm","T10175199",4,3,4,1,2,1,1,"N",78,"N","N"]
[1,"Jeff Love","Rhapsody","T13736205",2,1,2,1,0,0,1,"N",25,"N","N"]
[1,"Marisa Finan-Goode","Kite","T21413223",5,5,4,1,3,0,2,"Y",110,"N","N"]
[1,"Silver Alfriker","Bisha","T26466233",2,0,2,2,0,0,2,"Y",30,"N","N"]
[1,"Finn Proctor","Tango","T30544231",4,3,4,5,2,1,2,"Y",88,"N","N"]
[1,null,null,null,null,null,null,null,null,null,null,null,0]
[1,null,null,null,null,null,null,null,null,null,null,null,0]
[1,null,null,null,null,null,null,null,null,null,null,null,0]
[1,null,null,null,null,null,null,null,null,null,null,null,0]
[1,null,null,null,null,null,null,null,null,null,null,null,0]
[1,null,null,null,null,null,null,null,null,null,null,null,0]
[1,null,null,null,null,null,null,null,null,null,null,null,0]
[1,null,null,null,null,null,null,null,null,null,null,null,0]
[1,null,null,null,null,null,null,null,null,null,null,null,0]
[1,null,null,null,null,null,null,null,null,null,null,null,0]
[1,null,null,null,null,null,null,null,null,null,null,null,0]
[1,null,null,null,null,null,null,null,null,null,null,null,0]
[1,null,null,null,null,null,null,null,null,null,null,null,0]
[1,null,null,null,null,null,null,null,null,null,null,null,0]
[1,null,null,null,null,null,null,null,null,null,null,null,0]
[1,null,null,null,null,null,null,null,null,null,null,null,0]
[1,null,null,null,null,null,null,null,null,null,null,null,0]
[1,null,null,null,null,null,null,null,null,null,null,null,0]
[1,null,null,null,null,null,null,null,null,null,null,null,0]
[1,null,null,null,null,null,null,null,null,null,null,null,0]
[1,null,null,null,null,null,null,null,null,null,null,null,0]
[1,null,null,null,null,null,null,null,null,null,null,null,0]
[1,null,null,null,null,null,null,null,null,null,null,null,0]
[1,null,null,null,null,null,null,null,null,null,null,null,0]
[1,null,null,null,null,null,null,null,null,null,null,null,0]
[1,null,null,null,null,null,null,null,null,null,null,null,0]
[1,null,null,null,null,null,null,null,null,null,null,null,0]
[1,null,null,null,null,null,null,null,null,null,null,null,0]
[1,null,null,null,null,null,null,null,null,null,null,null,0]
[1,null,null,null,null,null,null,null,null,null,null,null,0]
[1,null,null,null,null,null,null,null,null,null,null,null,0]
[1,null,null,null,null,null,null,null,null,null,null,null,0]
[1,null,null,null,null,null,null,null,null,null,null,null,0]
[1,null,null,null,null,null,null,null,null,null,null,null,0]
[1,null,null,null,null,null,null,null,null,null,null,null,0]
[1,null,null,null,null,null,null,null,null,null,null,null,0]
[1,null,null,null,null,null,null,null,null,null,null,null,0]
[1,null,null,null,null,null,null,null,null,null,null,null,0]
[1,null,null,null,null,null,null,null,null,null,null,null,0]
[1,null,null,null,null,null,null,null,null,null,null,null,0]
[1,null,null,null,null,null,null,null,null,null,null,null,{"$f":"SUM(E68*5)+(F68*5)+(G68*5)+(I68*10)+(J68*3)+IF(L68=\"Y\",10,IF(L68=\"N\",0))","v":0}]
[1,null,null,null,null,null,null,null,null,null,null,null,0]
[1,null,null,null,null,null,null,null,null,null,null,null,0]
[1,null,null,null,null,null,null,null,null,null,null,null,0]
[1,null,null,null,null,null,null,null,null,null,null,null,0]
[1,null,null,null,null,null,null,null,null,null,null,null,0]
[1,null,null,null,null,null,null,null,null,null,null,null,0]
[1,null,null,null,null,null,null,null,null,null,null,null,0]
[1,null,null,null,null,null,null,null,null,null,null,null,0]
[1,null,null,null,null,null,null,null,null,null,null,null,0]
[1,null,null,null,null,null,null,null,null,null,null,null,0]
[1,null,null,null,null,null,null,null,null,null,null,null,0]
[1,null,null,null,null,null,null,null,null,null,null,null,0]
[1,null,null,null,null,null,null,null,null,null,null,null,0]
[1,null,null,null,null,null,null,null,null,null,null,null,0]
[1,null,null,null,null,null,null,null,null,null,null,null,0]
[1,null,null,null,null,null,null,null,null,null,null,null,0]
[1,null,null,null,null,null,null,null,null,null,null,null,0]
[1,null,null,null,null,null,null,null,null,null,null,null,0]
[1,null,null,null,null,null,null,null,null,null,null,null,0]
[1,null,null,null,null,null,null,null,null,null,null,null,0]
[1,null,null,null,null,null,null,null,null,null,null,null,0]
[1,null,null,null,null,null,null,null,null,null,null,null,0]
[1,null,null,null,null,null,null,null,null,null,null,null,0]
[1,null,null,null,null,null,null,null,null,null,null,null,0]
[1,null,null,null,null,null,null,null,null,null,null,null,0]
[1,null,null,null,null,null,null,null,null,null,null,null,0]
[1,null,null,null,null,null,null,null,null,null,null,null,0]
[1,null,null,null,null,null,null,null,null,null,null,null,0]
[1,null,null,null,null,null,null,null,null,null,null,null,0]
[1,null,null,null,null,null,null,null,null,null,null,null,0]
[1,null,null,null,null,null,null,null,null,null,null,null,0]
[1,null,null,null,null,null,null,null,null,null,null,null,0]
[1,null,null,null,null,null,null,null,null,null,null,null,0]
[null,null,null,null,null,null,null,null,null,null,null,null,0]
[null,null,null,null,null,null,null,null,null,null,null,null,0]
[null,null,null,null,null,null,null,null,null,null,null,null,0]
[null,null,null,null,null,null,null,null,null,null,null,null,0]
[null,null,null,null,null,null,null,null,null,null,null,null,0]
[null,null,null,null,null,null,null,null,null,null,null,null,0]
[null,null,null,null,null,null,null,null,null,null,null,null,0]
[null,null,null,null,null,null,null,null,null,null,null,null,0]
[null,null,null,null,null,null,null,null,null,null,null,null,0]
[null,null,null,null,null,null,null,null,null,null,null,null,0]
[null,null,null,null,null,null,null,null,null,null,null,null,0]
[null,null,null,null,null,null,null,null,null,null,null,null,0]
[null,null,null,null,null,null,null,null,null,null,null,null,0]
[null,null,null,null,null,null,null,null,null,null,null,null,0]
[null,null,null,null,null,null,null,null,null,null,null,null,0]
[null,null,null,null,null,null,null,null,null,null,null,null,0]
[null,null,null,null,null,null,null,null,null,null,null,null,0]
[null,null,null,null,null,null,null,null,null,null,null,null,0]
[null,null,null,null,null,null,null,null,null,null,null,null,0]
[null,null,null,null,null,null,null,null,null,null,null,null,0]
[null,null,null,null,null,null,null,null,null,null,null,null,0]
[null,null,null,null,null,null,null,null,null,null,null,null,0]
[null,null,null,null,null,null,null,null,null,null,null,null,0]
[null,null,null,null,null,null,null,null,null,null,null,null,0]
[null,null,null,null,null,null,null,null,null,null,null,null,0]
[null,null,null,null,null,null,null,null,null,null,null,null,0]
[null,null,null,null,null,null,null,null,null,null,null,null,0]
[null,null,null,null,null,null,null,null,null,null,null,null,0]
[null,null,null,null,null,null,null,null,null,null,null,null,0]
[null,null,null,null,null,null,null,null,null,null,null,null,0]
[null,null,null,null,null,null,null,null,null,null,null,null,{"$f":"SUM(E132*5)+(F132*5)+(G132*5)+(I132*10)+(J132*3)+IF(L132=\"Y\",10,IF(L132=\"N\",0))","v":0}]
[null,null,null,null,null,null,null,null,null,null,null,null,0]
[null,null,null,null,null,null,null,null,null,null,null,null,0]
[null,null,null,null,null,null,null,null,null,null,null,null,0]
[null,null,null,null,null,null,null,null,null,null,null,null,0]
[null,null,null,null,null,null,null,null,null,null,null,null,0]
[null,null,null,null,null,null,null,null,null,null,null,null,0]
[null,null,null,null,null,null,null,null,null,null,null,null,0]
[null,null,null,null,null,null,null,null,null,null,null,null,0]
[null,null,null,null,null,null,null,null,null,null,null,null,0]
[null,null,null,null,null,null,null,null,null,null,null,null,0]
[null,null,null,null,null,null,null,null,null,null,null,null,0]
[null,null,null,null,null,null,null,null,null,null,null,null,0]
[null,null,null,null,null,null,null,null,null,null,null,null,0]
[null,null,null,null,null,null,null,null,null,null,null,null,0]
[null,null,null,null,null,null,null,null,null,null,null,null,0]
[null,null,null,null,null,null,null,null,null,null,null,null,0]
[null,null,null,null,null,null,null,null,null,null,null,null,0]
[null,null,null,null,null,null,null,null,null,null,null,null,0]
[null,null,null,null,null,null,null,null,null,null,null,null,0]
[null,null,null,null,null,null,null,null,null,null,null,null,0]
[null,null,null,null,null,null,null,null,null,null,null,null,0]
[null,null,null,null,null,null,null,null,null,null,null,null,0]
[null,null,null,null,null,null,null,null,null,null,null,null,0]
[null,null,null,null,null,null,null,null,null,null,null,null,0]
[null,null,null,null,null,null,null,null,null,null,null,null,0]
[null,null,null,null,null,null,null,null,null,null,null,null,0]
[null,null,null,null,null,null,null,null,null,null,null,null,0]
[null,null,null,null,null,null,null,null,null,null,null,null,0]
[null,null,null,null,null,null,null,null,null,null,null,null,0]
[null,null,null,null,null,null,null,null,null,null,null,null,0]
[null,null,null,null,null,null,null,null,null,null,null,null,0]
[null,null,null,null,null,null,null,null,null,null,null,null,0]
[null,null,null,null,null,null,null,null,null,null,null,null,0]
[null,null,null,null,null,null,null,null,null,null,null,null,0]
[null,null,null,null,null,null,null,null,null,null,null,null,0]
[null,null,null,null,null,null,null,null,null,null,null,null,0]
[null,null,null,null,null,null,null,null,null,null,null,null,0]
[null,null,null,null,null,null,null,null,null,null,null,null,0]
[null,null,null,null,null,null,null,null,null,null,null,null,0]
[null,null,null,null,null,null,null,null,null,null,null,null,0]
[null,null,null,null,null,null,null,null,null,null,null,null,0]
[null,null,null,null,null,null,null,null,null,null,null,null,0]
[null,null,null,null,null,null,null,null,null,null,null,null,0]
[null,null,null,null,null,null,null,null,null,null,null,null,0]
[null,null,null,null,null,null,null,null,null,null,null,null,0]
[null,null,null,null,null,null,null,null,null,null,null,null,0]
[null,null,null,null,null,null,null,null,null,null,null,null,0]
[null,null,null,null,null,null,null,null,null,null,null,null,0]
[null,null,null,null,null,null,null,null,null,null,null,null,0]
[null,null,null,null,null,null,null,null,null,null,null,null,0]
[null,null,null,null,null,null,null,null,null,null,null,null,0]
[null,null,null,null,null,null,null,null,null,null,null,null,0]
[null,null,null,null,null,null,null,null,null,null,null,null,0]
[null,null,null,null,null,null,null,null,null,null,null,null,0]
[null,null,null,null,null,null,null,null,null,null,null,null,0]
[null,null,null,null,null,null,null,null,null,null,null,null,0]
[null,null,null,null,null,null,null,null,null,null,null,null,0]
[null,null,null,null,null,null,null,null,null,null,null,null,0]
[null,null,null,null,null,null,null,null,null,null,null,null,0]
[null,null,null,null,null,null,null,null,null,null,null,null,0]
[null,null,null,null,null,null,null,null,null,null,null,null,0]
[null,null,null,null,null,null,null,null,null,null,null,null,0]
[null,null,null,null,null,null,null,null,null,null,null,null,0]
[null,null,null,null,null,null,null,null,null,null,null,null,{"$f":"SUM(E196*5)+(F196*5)+(G196*5)+(I196*10)+(J196*3)+IF(L196=\"Y\",10,IF(L196=\"N\",0))","v":0}]
[null,null,null,null,null,null,null,null,null,null,null,null,0]
[null,null,null,null,null,null,null,null,null,null,null,null,0]
[null,null,null,null,null,null,null,null,null,null,null,null,0]
[null,null,null,null,null,null,null,null,null,null,null,null,0]

{"sheet":"Sort Sheet","index":2,"n_rows":198,"n_cols":16,"rows_kept":198,"cut":false,"hidden":false,"merged":[]}
["Level ","Handler","Dog","UDT #\n(this is the UpDog Team # not the competitor #)","Obstacle 1\nTotal # of obstacles completed successfully","Obstacle 2\nTotal # of obstacles completed successfully","Obstacle 3\nTotal # of obstacles completed successfully","Total of\nMissed Obstacles\n","Total # of\n10 yard catches completed successfully (used in TB 2)","Total # of\n3 yard catches completed successfully","Total of\nMissed Catches\n(for use in tie-breaker 1)","Did the handler, dog and 1 disc end in the Sweet Spot, Y or N?","Total","Speedy Feet\n4 Clean Runs with all catches made on 1st attempt*?","High Five   5 Clean Runs with all catches made on 1st attempt*?","Division"]
[1,"Lindsay Thompson","Moxie","T27199235",6,6,6,0,3,1,2,"N",{"$f":"SUM(E2*5)+(F2*5)+(G2*5)+(I2*10)+(J2*3)+IF(L2=\"Y\",10,IF(L2=\"N\",0))","v":123},"Y","N"]
[1,"Marisa Finan-Goode","Kite","T21413223",5,5,4,1,3,0,2,"Y",110,"N","N"]
[1,"Frank Monbtgomery","Jagger","T2009152",6,6,6,0,2,0,4,"N",110,"N","N"]
[1,"Sam Marion","GIR","T20779220",5,4,4,0,4,0,0,"N",105,"Y","N"]
[1,"Sam Marion","Josie","t10565197",4,4,4,0,3,0,1,"Y",100,"N","N"]
[1,"Tamnmy Bonas","Tac","T2832181",6,6,6,0,1,0,5,"N",100,"N","N"]
[1,"Finn Proctor","Rumor","T29480237",5,5,5,3,1,1,3,"Y",98,"N","N"]
[1,"Zoey Proctor","Figment","T29478231",5,5,2,3,3,0,2,"N",90,"N","N"]
[1,"Finn Proctor","Tango","T30544231",4,3,4,5,2,1,2,"Y",88,"N","N"]
[1,"Tracy Love","Rhythm","T10175199",4,3,4,1,2,1,1,"N",78,"N","N"]
[1,"Frank Monbtgomery","Bil Boy Blu","T2009152",3,3,2,1,0,1,2,"Y",53,"N","N"]
[1,"Eden Proctor","Rumor","T30760240",2,3,3,1,1,0,1,"N",50,"N","N"]
[1,"Tammy Bonas","Bo","T26447235",2,2,2,2,0,0,2,"Y",40,"N","N"]
[1,"Rachel Hoar","Nacho","T16237214",3,2,2,0,0,0,2,"N",35,"N","N"]
[1,"Silver Alfriker","Bisha","T26466233",2,0,2,2,0,0,2,"Y",30,"N","N"]
[1,"Jeff Love","Rhapsody","T13736205",2,1,2,1,0,0,1,"N",25,"N","N"]
[1,null,null,null,null,null,null,null,null,null,null,null,0]
[1,null,null,null,null,null,null,null,null,null,null,null,0]
[1,null,null,null,null,null,null,null,null,null,null,null,0]
[1,null,null,null,null,null,null,null,null,null,null,null,0]
[1,null,null,null,null,null,null,null,null,null,null,null,0]
[1,null,null,null,null,null,null,null,null,null,null,null,0]
[1,null,null,null,null,null,null,null,null,null,null,null,0]
[1,null,null,null,null,null,null,null,null,null,null,null,0]
[1,null,null,null,null,null,null,null,null,null,null,null,0]
[1,null,null,null,null,null,null,null,null,null,null,null,0]
[1,null,null,null,null,null,null,null,null,null,null,null,0]
[1,null,null,null,null,null,null,null,null,null,null,null,0]
[1,null,null,null,null,null,null,null,null,null,null,null,0]
[1,null,null,null,null,null,null,null,null,null,null,null,0]
[1,null,null,null,null,null,null,null,null,null,null,null,0]
[1,null,null,null,null,null,null,null,null,null,null,null,0]
[1,null,null,null,null,null,null,null,null,null,null,null,{"$f":"SUM(E34*5)+(F34*5)+(G34*5)+(I34*10)+(J34*3)+IF(L34=\"Y\",10,IF(L34=\"N\",0))","v":0}]
[1,null,null,null,null,null,null,null,null,null,null,null,0]
[1,null,null,null,null,null,null,null,null,null,null,null,0]
[1,null,null,null,null,null,null,null,null,null,null,null,0]
[1,null,null,null,null,null,null,null,null,null,null,null,0]
[1,null,null,null,null,null,null,null,null,null,null,null,0]
[1,null,null,null,null,null,null,null,null,null,null,null,0]
[1,null,null,null,null,null,null,null,null,null,null,null,0]
[1,null,null,null,null,null,null,null,null,null,null,null,0]
[1,null,null,null,null,null,null,null,null,null,null,null,0]
[1,null,null,null,null,null,null,null,null,null,null,null,0]
[1,null,null,null,null,null,null,null,null,null,null,null,0]
[1,null,null,null,null,null,null,null,null,null,null,null,0]
[1,null,null,null,null,null,null,null,null,null,null,null,0]
[1,null,null,null,null,null,null,null,null,null,null,null,0]
[1,null,null,null,null,null,null,null,null,null,null,null,0]
[1,null,null,null,null,null,null,null,null,null,null,null,0]
[1,null,null,null,null,null,null,null,null,null,null,null,0]
[1,null,null,null,null,null,null,null,null,null,null,null,0]
[1,null,null,null,null,null,null,null,null,null,null,null,0]
[1,null,null,null,null,null,null,null,null,null,null,null,0]
[1,null,null,null,null,null,null,null,null,null,null,null,0]
[1,null,null,null,null,null,null,null,null,null,null,null,0]
[1,null,null,null,null,null,null,null,null,null,null,null,0]
[1,null,null,null,null,null,null,null,null,null,null,null,0]
[1,null,null,null,null,null,null,null,null,null,null,null,0]
[1,null,null,null,null,null,null,null,null,null,null,null,0]
[1,null,null,null,null,null,null,null,null,null,null,null,0]
[1,null,null,null,null,null,null,null,null,null,null,null,0]
[1,null,null,null,null,null,null,null,null,null,null,null,0]
[1,null,null,null,null,null,null,null,null,null,null,null,0]
[1,null,null,null,null,null,null,null,null,null,null,null,0]
[1,null,null,null,null,null,null,null,null,null,null,null,{"$f":"SUM(E66*5)+(F66*5)+(G66*5)+(I66*10)+(J66*3)+IF(L66=\"Y\",10,IF(L66=\"N\",0))","v":0}]
[1,null,null,null,null,null,null,null,null,null,null,null,0]
[1,null,null,null,null,null,null,null,null,null,null,null,0]
[1,null,null,null,null,null,null,null,null,null,null,null,0]
[1,null,null,null,null,null,null,null,null,null,null,null,0]
[1,null,null,null,null,null,null,null,null,null,null,null,0]
[1,null,null,null,null,null,null,null,null,null,null,null,0]
[1,null,null,null,null,null,null,null,null,null,null,null,0]
[1,null,null,null,null,null,null,null,null,null,null,null,0]
[1,null,null,null,null,null,null,null,null,null,null,null,0]
[1,null,null,null,null,null,null,null,null,null,null,null,0]
[1,null,null,null,null,null,null,null,null,null,null,null,0]
[1,null,null,null,null,null,null,null,null,null,null,null,0]
[1,null,null,null,null,null,null,null,null,null,null,null,0]
[1,null,null,null,null,null,null,null,null,null,null,null,0]
[1,null,null,null,null,null,null,null,null,null,null,null,0]
[1,null,null,null,null,null,null,null,null,null,null,null,0]
[1,null,null,null,null,null,null,null,null,null,null,null,0]
[1,null,null,null,null,null,null,null,null,null,null,null,0]
[1,null,null,null,null,null,null,null,null,null,null,null,0]
[1,null,null,null,null,null,null,null,null,null,null,null,0]
[1,null,null,null,null,null,null,null,null,null,null,null,0]
[1,null,null,null,null,null,null,null,null,null,null,null,0]
[1,null,null,null,null,null,null,null,null,null,null,null,0]
[1,null,null,null,null,null,null,null,null,null,null,null,0]
[1,null,null,null,null,null,null,null,null,null,null,null,0]
[1,null,null,null,null,null,null,null,null,null,null,null,0]
[1,null,null,null,null,null,null,null,null,null,null,null,0]
[1,null,null,null,null,null,null,null,null,null,null,null,0]
[1,null,null,null,null,null,null,null,null,null,null,null,0]
[1,null,null,null,null,null,null,null,null,null,null,null,0]
[1,null,null,null,null,null,null,null,null,null,null,null,0]
[1,null,null,null,null,null,null,null,null,null,null,null,{"$f":"SUM(E98*5)+(F98*5)+(G98*5)+(I98*10)+(J98*3)+IF(L98=\"Y\",10,IF(L98=\"N\",0))","v":0}]
[1,null,null,null,null,null,null,null,null,null,null,null,0]
[null,null,null,null,null,null,null,null,null,null,null,null,0]
[null,null,null,null,null,null,null,null,null,null,null,null,0]
[null,null,null,null,null,null,null,null,null,null,null,null,0]
[null,null,null,null,null,null,null,null,null,null,null,null,0]
[null,null,null,null,null,null,null,null,null,null,null,null,0]
[null,null,null,null,null,null,null,null,null,null,null,null,0]
[null,null,null,null,null,null,null,null,null,null,null,null,0]
[null,null,null,null,null,null,null,null,null,null,null,null,0]
[null,null,null,null,null,null,null,null,null,null,null,null,0]
[null,null,null,null,null,null,null,null,null,null,null,null,0]
[null,null,null,null,null,null,null,null,null,null,null,null,0]
[null,null,null,null,null,null,null,null,null,null,null,null,0]
[null,null,null,null,null,null,null,null,null,null,null,null,0]
[null,null,null,null,null,null,null,null,null,null,null,null,0]
[null,null,null,null,null,null,null,null,null,null,null,null,0]
[null,null,null,null,null,null,null,null,null,null,null,null,0]
[null,null,null,null,null,null,null,null,null,null,null,null,0]
[null,null,null,null,null,null,null,null,null,null,null,null,0]
[null,null,null,null,null,null,null,null,null,null,null,null,0]
[null,null,null,null,null,null,null,null,null,null,null,null,0]
[null,null,null,null,null,null,null,null,null,null,null,null,0]
[null,null,null,null,null,null,null,null,null,null,null,null,0]
[null,null,null,null,null,null,null,null,null,null,null,null,0]
[null,null,null,null,null,null,null,null,null,null,null,null,0]
[null,null,null,null,null,null,null,null,null,null,null,null,0]
[null,null,null,null,null,null,null,null,null,null,null,null,0]
[null,null,null,null,null,null,null,null,null,null,null,null,0]
[null,null,null,null,null,null,null,null,null,null,null,null,0]
[null,null,null,null,null,null,null,null,null,null,null,null,0]
[null,null,null,null,null,null,null,null,null,null,null,null,0]
[null,null,null,null,null,null,null,null,null,null,null,null,{"$f":"SUM(E130*5)+(F130*5)+(G130*5)+(I130*10)+(J130*3)+IF(L130=\"Y\",10,IF(L130=\"N\",0))","v":0}]
[null,null,null,null,null,null,null,null,null,null,null,null,0]
[null,null,null,null,null,null,null,null,null,null,null,null,0]
[null,null,null,null,null,null,null,null,null,null,null,null,0]
[null,null,null,null,null,null,null,null,null,null,null,null,0]
[null,null,null,null,null,null,null,null,null,null,null,null,0]
[null,null,null,null,null,null,null,null,null,null,null,null,0]
[null,null,null,null,null,null,null,null,null,null,null,null,0]
[null,null,null,null,null,null,null,null,null,null,null,null,0]
[null,null,null,null,null,null,null,null,null,null,null,null,0]
[null,null,null,null,null,null,null,null,null,null,null,null,0]
[null,null,null,null,null,null,null,null,null,null,null,null,0]
[null,null,null,null,null,null,null,null,null,null,null,null,0]
[null,null,null,null,null,null,null,null,null,null,null,null,0]
[null,null,null,null,null,null,null,null,null,null,null,null,0]
[null,null,null,null,null,null,null,null,null,null,null,null,0]
[null,null,null,null,null,null,null,null,null,null,null,null,0]
[null,null,null,null,null,null,null,null,null,null,null,null,0]
[null,null,null,null,null,null,null,null,null,null,null,null,0]
[null,null,null,null,null,null,null,null,null,null,null,null,0]
[null,null,null,null,null,null,null,null,null,null,null,null,0]
[null,null,null,null,null,null,null,null,null,null,null,null,0]
[null,null,null,null,null,null,null,null,null,null,null,null,0]
[null,null,null,null,null,null,null,null,null,null,null,null,0]
[null,null,null,null,null,null,null,null,null,null,null,null,0]
[null,null,null,null,null,null,null,null,null,null,null,null,0]
[null,null,null,null,null,null,null,null,null,null,null,null,0]
[null,null,null,null,null,null,null,null,null,null,null,null,0]
[null,null,null,null,null,null,null,null,null,null,null,null,0]
[null,null,null,null,null,null,null,null,null,null,null,null,0]
[null,null,null,null,null,null,null,null,null,null,null,null,0]
[null,null,null,null,null,null,null,null,null,null,null,null,0]
[null,null,null,null,null,null,null,null,null,null,null,null,{"$f":"SUM(E162*5)+(F162*5)+(G162*5)+(I162*10)+(J162*3)+IF(L162=\"Y\",10,IF(L162=\"N\",0))","v":0}]
[null,null,null,null,null,null,null,null,null,null,null,null,0]
[null,null,null,null,null,null,null,null,null,null,null,null,0]
[null,null,null,null,null,null,null,null,null,null,null,null,0]
[null,null,null,null,null,null,null,null,null,null,null,null,0]
[null,null,null,null,null,null,null,null,null,null,null,null,0]
[null,null,null,null,null,null,null,null,null,null,null,null,0]
[null,null,null,null,null,null,null,null,null,null,null,null,0]
[null,null,null,null,null,null,null,null,null,null,null,null,0]
[null,null,null,null,null,null,null,null,null,null,null,null,0]
[null,null,null,null,null,null,null,null,null,null,null,null,0]
[null,null,null,null,null,null,null,null,null,null,null,null,0]
[null,null,null,null,null,null,null,null,null,null,null,null,0]
[null,null,null,null,null,null,null,null,null,null,null,null,0]
[null,null,null,null,null,null,null,null,null,null,null,null,0]
[null,null,null,null,null,null,null,null,null,null,null,null,0]
[null,null,null,null,null,null,null,null,null,null,null,null,0]
[null,null,null,null,null,null,null,null,null,null,null,null,0]
[null,null,null,null,null,null,null,null,null,null,null,null,0]
[null,null,null,null,null,null,null,null,null,null,null,null,0]
[null,null,null,null,null,null,null,null,null,null,null,null,0]
[null,null,null,null,null,null,null,null,null,null,null,null,0]
[null,null,null,null,null,null,null,null,null,null,null,null,0]
[null,null,null,null,null,null,null,null,null,null,null,null,0]
[null,null,null,null,null,null,null,null,null,null,null,null,0]
[null,null,null,null,null,null,null,null,null,null,null,null,0]
[null,null,null,null,null,null,null,null,null,null,null,null,0]
[null,null,null,null,null,null,null,null,null,null,null,null,0]
[null,null,null,null,null,null,null,null,null,null,null,null,0]
[null,null,null,null,null,null,null,null,null,null,null,null,0]
[null,null,null,null,null,null,null,null,null,null,null,null,0]
[null,null,null,null,null,null,null,null,null,null,null,null,0]
[null,null,null,null,null,null,null,null,null,null,null,null,{"$f":"SUM(E194*5)+(F194*5)+(G194*5)+(I194*10)+(J194*3)+IF(L194=\"Y\",10,IF(L194=\"N\",0))","v":0}]
[null,null,null,null,null,null,null,null,null,null,null,null,0]
[null,null,null,null,null,null,null,null,null,null,null,null,0]
[null,null,null,null,null,null,null,null,null,null,null,null,0]
[null,null,null,null,null,null,null,null,null,null,null,null,0]

{"sheet":"Division Sort Sheet","index":3,"n_rows":1,"n_cols":16,"rows_kept":1,"cut":false,"hidden":false,"merged":[]}
["Level ","Handler","Dog","UDT #\n(this is the UpDog Team # not the competitor #)","Obstacle 1\nTotal # of obstacles completed successfully","Obstacle 2\nTotal # of obstacles completed successfully","Obstacle 3\nTotal # of obstacles completed successfully","Total of\nMissed Obstacles\n","Total # of\n10 yard catches completed successfully (used in TB 2)","Total # of\n3 yard catches completed successfully","Total of\nMissed Catches\n(for use in tie-breaker 1)","Did the handler, dog and 1 disc end in the Sweet Spot, Y or N?","Total","Speedy Feet\n4 Clean Runs with all catches made on 1st attempt*?","High Five   5 Clean Runs with all catches made on 1st attempt*?","Division"]

{"sheet":"Sheet3","index":4,"n_rows":3,"n_cols":1,"rows_kept":3,"cut":false,"hidden":true,"merged":[]}
[]
["Y"]
["N"]